fUSD/lending_fUSD_20260514
["ID","MTS","AMOUNT","RATE_DAILY","PERIOD"]
[422249263,1778764248000,-796.82940096,0.00029224,30]
[422249264,1778764248000,-1426.26891256,0.00029226,2]
[422249265,1778764248000,-615.0,0.00029444,2]
[422249261,1778764248000,-500.0,0.0002913,5]
[422249266,1778764248000,-13683.0,0.00029445,2]
[422249218,1778764248000,-2000.0,0.00028389,2]
[422249246,1778764248000,-1258.844168,0.00028767,7]
[422249245,1778764248000,-1258.844168,0.00028767,7]
[422249258,1778764248000,-200.0,0.0002913,20]
[422249242,1778764248000,-1258.844168,0.00028767,7]
[422249243,1778764248000,-1258.844168,0.00028767,7]
[422249221,1778764248000,-2000.0,0.00028389,2]
[422249229,1778764248000,-400.0,0.00028514,2]
[422249222,1778764248000,-2000.0,0.00028389,2]
[422249226,1778764248000,-156.57,0.00028493,2]
[422249225,1778764248000,-152.0,0.00028439,9]
[422249227,1778764248000,-1418.48,0.000285,7]
[422249220,1778764248000,-2000.0,0.00028389,2]
[422249224,1778764248000,-1503.0,0.00028389,2]
[422249231,1778764248000,-400.0,0.00028514,2]
[422249230,1778764248000,-400.0,0.00028514,2]
[422249228,1778764248000,-400.0,0.00028514,2]
[422249233,1778764248000,-400.0,0.00028514,2]
[422249235,1778764248000,-400.0,0.00028514,2]
[422249232,1778764248000,-400.0,0.00028514,2]
[422249236,1778764248000,-476.0,0.00028514,2]
[422249234,1778764248000,-400.0,0.00028514,2]
[422249239,1778764248000,-1258.844168,0.00028767,7]
[422249238,1778764248000,-1258.844168,0.00028767,7]
[422249240,1778764248000,-1258.844168,0.00028767,7]
[422249241,1778764248000,-1258.844168,0.00028767,7]
[422249237,1778764248000,-1258.844168,0.00028767,7]
[422249302,1778764249000,-1258.844168,0.000295,7]
[422249301,1778764249000,-787.643953,0.000295,7]
[422249300,1778764249000,-1258.844168,0.000295,7]
[422249303,1778764249000,-787.643953,0.000295,7]
[422249298,1778764249000,-1258.844168,0.000295,7]
[422249293,1778764249000,-435.84892,0.000295,7]
[422249296,1778764249000,-1258.844168,0.000295,7]
[422249304,1778764249000,-261.716233,0.000295,7]
[422249297,1778764249000,-787.643953,0.000295,7]
[422249305,1778764249000,-1000.0,0.0002956,7]
[422249299,1778764249000,-787.643953,0.000295,7]
[422249306,1778764249000,-1432.29,0.000296,7]
[422249317,1778764249000,-1145.82838,0.00029788,7]
[422249316,1778764249000,-1145.82838,0.00029788,7]
[422249315,1778764249000,-123702.7202291,0.00029788,2]
[422249310,1778764249000,-2998.49,0.000297,7]
[422249308,1778764249000,-150.0,0.00029601,2]
[422249307,1778764249000,-4042.1,0.000296,14]
[422249311,1778764249000,-367.18619809,0.00029718,2]
[422249309,1778764249000,-18047.92,0.00029623,7]
[422249312,1778764249000,-742.0,0.00029754,2]
[422249313,1778764249000,-300.0,0.00029787,10]
[422249322,1778764249000,-155.907713,0.00029788,7]
[422249295,1778764249000,-435.84892,0.000295,7]
[422249314,1778764249000,-93326.8555658,0.00029788,2]
[422249294,1778764249000,-435.84892,0.000295,7]
[422249269,1778764249000,-152.0,0.00029483,10]
[422249283,1778764249000,-803.606374,0.000295,7]
[422249267,1778764249000,-604.0,0.00029452,7]
[422249268,1778764249000,-926.0,0.00029462,2]
[422249319,1778764249000,-1145.82838,0.00029788,7]
[422249273,1778764249000,-255.111949,0.000295,7]
[422249270,1778764249000,-10845.75273973,0.000295,120]
[422249272,1778764249000,-255.111949,0.000295,7]
[422249271,1778764249000,-255.111949,0.000295,7]
[422249275,1778764249000,-6069.126935,0.000295,7]
[422249277,1778764249000,-6069.126935,0.000295,7]
[422249280,1778764249000,-892.364592,0.000295,7]
[422249276,1778764249000,-6069.126935,0.000295,7]
[422249292,1778764249000,-435.84892,0.000295,7]
[422249274,1778764249000,-255.111949,0.000295,7]
[422249279,1778764249000,-892.364592,0.000295,7]
[422249281,1778764249000,-892.364592,0.000295,7]
[422249285,1778764249000,-803.606374,0.000295,7]
[422249282,1778764249000,-892.364592,0.000295,7]
[422249284,1778764249000,-803.606374,0.000295,7]
[422249290,1778764249000,-155.677675,0.000295,7]
[422249288,1778764249000,-155.677675,0.000295,7]
[422249286,1778764249000,-803.606374,0.000295,7]
[422249287,1778764249000,-155.677675,0.000295,7]
[422249289,1778764249000,-155.677675,0.000295,7]
[422249291,1778764249000,-1500.0,0.000295,2]
[422249278,1778764249000,-6069.126935,0.000295,7]
[422249320,1778764249000,-151.0,0.00029788,7]
[422249318,1778764249000,-1145.82838,0.00029788,7]
[422249323,1778764249000,-750.661077,0.00029788,7]
[422249351,1778764249000,-212.93510395,0.0003,120]
[422249355,1778764249000,-1500.0,0.0003,2]
[422249365,1778764249000,-369.79013124,0.000301,120]
[422249354,1778764249000,-650.0,0.0003,2]
[422249363,1778764249000,-1418.48,0.000301,7]
[422249358,1778764249000,-214.95940296,0.0003,10]
[422249359,1778764249000,-604.0,0.00030014,7]
[422249361,1778764249000,-700.0,0.00030043,7]
[422249364,1778764249000,-200.0,0.000301,11]
[422249356,1778764249000,-200.0,0.0003,2]
[422249360,1778764249000,-243.84,0.00030041,15]
[422249362,1778764249000,-229.3,0.00030082,120]
[422249367,1778764249000,-708.50703679,0.000301,2]
[422249373,1778764249000,-276.87949196,0.00030129,2]
[422249377,1778764249000,-9289.51500601,0.0003013,7]
[422249369,1778764249000,-508.39550078,0.000301,2]
[422249372,1778764249000,-150.0,0.00030129,2]
[422249370,1778764249000,-508.39550078,0.000301,2]
[422249368,1778764249000,-787.95579279,0.000301,2]
[422249374,1778764249000,-580370.6319343,0.0003013,7]
[422249366,1778764249000,-708.50703679,0.000301,2]
[422249371,1778764249000,-150.0,0.00030129,2]
[422249375,1778764249000,-202.8084649,0.0003013,5]
[422249321,1778764249000,-151.0,0.00029788,7]
[422249376,1778764249000,-1089.73743478,0.0003013,2]
[422249350,1778764249000,-500.0,0.0003,2]
[422249347,1778764249000,-7382.68030136,0.0003,10]
[422249357,1778764249000,-208.3309892,0.0003,10]
[422249348,1778764249000,-324.24521552,0.0003,2]
[422249325,1778764249000,-750.661077,0.00029788,7]
[422249353,1778764249000,-165.48517158,0.0003,2]
[422249327,1778764249000,-151.0,0.00029788,7]
[422249328,1778764249000,-1000.0,0.000298,7]
[422249326,1778764249000,-750.661077,0.00029788,7]
[422249329,1778764249000,-1000.0,0.00029829,7]
[422249339,1778764249000,-330.0,0.00029945,14]
[422249338,1778764249000,-157.0,0.0002994,3]
[422249330,1778764249000,-1000.0,0.00029836,7]
[422249340,1778764249000,-1000.0,0.00029947,7]
[422249341,1778764249000,-869.0,0.0002998,7]
[422249332,1778764249000,-5896.07,0.00029865,2]
[422249331,1778764249000,-1000.0,0.00029853,7]
[422249324,1778764249000,-750.661077,0.00029788,7]
[422249336,1778764249000,-150.0,0.000299,2]
[422249335,1778764249000,-150.0,0.000299,2]
[422249349,1778764249000,-1845.21977072,0.0003,2]
[422249343,1778764249000,-202.94,0.0003,11]
[422249352,1778764249000,-311.26101948,0.0003,2]
[422249345,1778764249000,-252.66873104,0.0003,120]
[422249346,1778764249000,-20170.11975411,0.0003,2]
[422249342,1778764249000,-240.75254646,0.0002999,2]
[422249334,1778764249000,-150.0,0.000299,2]
[422249337,1778764249000,-150.0,0.000299,2]
[422249333,1778764249000,-4799.37329779,0.000299,2]
[422249344,1778764249000,-10000.0,0.0003,10]
[422249417,1778764250000,-350.452789,0.0003013,7]
[422249415,1778764250000,-151.0,0.0003013,7]
[422249414,1778764250000,-151.0,0.0003013,7]
[422249410,1778764250000,-3914.006443,0.0003013,7]
[422249408,1778764250000,-3914.006443,0.0003013,7]
[422249404,1778764250000,-629.126431,0.0003013,7]
[422249409,1778764250000,-3914.006443,0.0003013,7]
[422249412,1778764250000,-151.0,0.0003013,7]
[422249416,1778764250000,-151.0,0.0003013,7]
[422249406,1778764250000,-629.126431,0.0003013,7]
[422249411,1778764250000,-200.0,0.0003013,2]
[422249420,1778764250000,-350.452789,0.0003013,7]
[422249424,1778764250000,-516.499835,0.0003013,7]
[422249419,1778764250000,-350.452789,0.0003013,7]
[422249418,1778764250000,-350.452789,0.0003013,7]
[422249423,1778764250000,-516.499835,0.0003013,7]
[422249425,1778764250000,-200.0,0.0003013,2]
[422249421,1778764250000,-516.499835,0.0003013,7]
[422249438,1778764250000,-770.94343061,0.00030283,7]
[422249427,1778764250000,-10077.0,0.00030137,120]
[422249437,1778764250000,-2572.9,0.00030239,2]
[422249426,1778764250000,-165.0,0.00030137,120]
[422249432,1778764250000,-804.24370141,0.00030137,2]
[422249407,1778764250000,-3914.006443,0.0003013,7]
[422249422,1778764250000,-516.499835,0.0003013,7]
[422249402,1778764250000,-151.0,0.0003013,30]
[422249387,1778764250000,-1609.946875,0.0003013,7]
[422249403,1778764250000,-629.126431,0.0003013,7]
[422249428,1778764250000,-1042.56,0.00030137,2]
[422249379,1778764250000,-1343.19200131,0.0003013,2]
[422249388,1778764250000,-151.0,0.0003013,30]
[422249378,1778764250000,-200.06784425,0.0003013,2]
[422249389,1778764250000,-151.0,0.0003013,30]
[422249390,1778764250000,-151.0,0.0003013,30]
[422249380,1778764250000,-200.0,0.0003013,2]
[422249381,1778764250000,-300.0,0.0003013,7]
[422249385,1778764250000,-1609.946875,0.0003013,7]
[422249386,1778764250000,-1609.946875,0.0003013,7]
[422249383,1778764250000,-151.0,0.0003013,7]
[422249384,1778764250000,-1609.946875,0.0003013,7]
[422249382,1778764250000,-200.0,0.0003013,2]
[422249391,1778764250000,-151.0,0.0003013,30]
[422249392,1778764250000,-151.0,0.0003013,30]
[422249395,1778764250000,-151.0,0.0003013,30]
[422249393,1778764250000,-151.0,0.0003013,30]
[422249400,1778764250000,-151.0,0.0003013,30]
[422249394,1778764250000,-151.0,0.0003013,30]
[422249399,1778764250000,-151.0,0.0003013,30]
[422249401,1778764250000,-151.0,0.0003013,30]
[422249396,1778764250000,-151.0,0.0003013,30]
[422249398,1778764250000,-151.0,0.0003013,30]
[422249397,1778764250000,-151.0,0.0003013,30]
[422249413,1778764250000,-151.0,0.0003013,7]
[422249405,1778764250000,-629.126431,0.0003013,7]
[422249429,1778764250000,-200.0,0.00030137,2]
[422249482,1778764250000,-255.111949,0.00031,7]
[422249435,1778764250000,-1418.48,0.000302,7]
[422249464,1778764250000,-2998.49,0.000307,7]
[422249468,1778764250000,-200.0,0.00030736,2]
[422249466,1778764250000,-200.0,0.00030736,2]
[422249467,1778764250000,-200.0,0.00030736,2]
[422249465,1778764250000,-208.3990806,0.000307,2]
[422249469,1778764250000,-200.0,0.00030736,2]
[422249470,1778764250000,-157.0,0.0003079,3]
[422249471,1778764250000,-1792.39446603,0.000308,2]
[422249478,1778764250000,-208.3309892,0.00031,120]
[422249472,1778764250000,-1792.39446602,0.000308,2]
[422249477,1778764250000,-295.25408492,0.00031,2]
[422249479,1778764250000,-4997.1600214,0.00031,7]
[422249473,1778764250000,-1792.39446602,0.000308,2]
[422249475,1778764250000,-1633.34058724,0.0003084,2]
[422249476,1778764250000,-11392.6499919,0.00031,2]
[422249480,1778764250000,-160.0,0.00031,120]
[422249489,1778764250000,-892.364592,0.00031,7]
[422249483,1778764250000,-255.111949,0.00031,7]
[422249485,1778764250000,-6069.126935,0.00031,7]
[422249486,1778764250000,-6069.126935,0.00031,7]
[422249484,1778764250000,-255.111942,0.00031,7]
[422249481,1778764250000,-255.111949,0.00031,7]
[422249487,1778764250000,-6069.126935,0.00031,7]
[422249488,1778764250000,-6069.12694308,0.00031,7]
[422249430,1778764250000,-250.0,0.00030137,120]
[422249462,1778764250000,-155.0,0.00030618,30]
[422249463,1778764250000,-156.0,0.00030618,30]
[422249474,1778764250000,-150.0,0.00030834,2]
[422249461,1778764250000,-260.0,0.00030618,30]
[422249431,1778764250000,-6296.2,0.00030137,30]
[422249459,1778764250000,-202.0,0.00030618,30]
[422249433,1778764250000,-500.0,0.00030137,2]
[422249436,1778764250000,-227.1522825,0.0003021,120]
[422249434,1778764250000,-15771.87073103,0.000302,2]
[422249439,1778764250000,-200.0,0.00030431,2]
[422249442,1778764250000,-200.0,0.00030431,2]
[422249443,1778764250000,-152.0,0.00030528,11]
[422249440,1778764250000,-200.0,0.00030431,2]
[422249450,1778764250000,-2367.0,0.00030559,30]
[422249448,1778764250000,-160.0,0.00030559,30]
[422249444,1778764250000,-179.53,0.00030554,3]
[422249445,1778764250000,-179.53,0.00030554,3]
[422249441,1778764250000,-200.0,0.00030431,2]
[422249457,1778764250000,-2273.0,0.00030618,30]
[422249458,1778764250000,-3851.0,0.00030618,30]
[422249446,1778764250000,-523.0,0.00030559,30]
[422249460,1778764250000,-153.0,0.00030618,30]
[422249452,1778764250000,-152.0,0.00030578,15]
[422249454,1778764250000,-4042.1,0.000306,14]
[422249456,1778764250000,-151.0,0.000306,7]
[422249455,1778764250000,-151.0,0.000306,7]
[422249451,1778764250000,-604.0,0.00030575,8]
[422249447,1778764250000,-169.0,0.00030559,30]
[422249449,1778764250000,-451.0,0.00030559,30]
[422249453,1778764250000,-1432.29,0.000306,7]
[422249527,1778764251000,-1000.0,0.00031171,2]
[422249531,1778764251000,-1000.0,0.0003118,2]
[422249529,1778764251000,-1000.0,0.00031171,2]
[422249525,1778764251000,-1000.0,0.00031171,2]
[422249526,1778764251000,-1000.0,0.00031171,2]
[422249519,1778764251000,-150.0,0.00031081,2]
[422249522,1778764251000,-350.0,0.00031106,4]
[422249528,1778764251000,-1000.0,0.00031171,2]
[422249520,1778764251000,-200.0,0.00031096,2]
[422249521,1778764251000,-374.58,0.00031096,2]
[422249534,1778764251000,-4042.1,0.000313,14]
[422249523,1778764251000,-2394.57,0.00031118,10]
[422249535,1778764251000,-152.0,0.00031308,16]
[422249554,1778764251000,-3851.0,0.00031618,30]
[422249532,1778764251000,-1847.41533141,0.0003118,2]
[422249538,1778764251000,-200.0,0.00031353,2]
[422249537,1778764251000,-200.0,0.00031353,2]
[422249536,1778764251000,-200.0,0.00031353,2]
[422249539,1778764251000,-200.0,0.00031353,2]
[422249541,1778764251000,-200.39681956,0.000315,2]
[422249540,1778764251000,-3824.127,0.000314,120]
[422249542,1778764251000,-150.0,0.000315,2]
[422249543,1778764251000,-1000.0,0.000315,7]
[422249544,1778764251000,-500.0,0.00031507,2]
[422249546,1778764251000,-523.0,0.00031559,30]
[422249530,1778764251000,-1000.0,0.0003118,2]
[422249533,1778764251000,-1432.29,0.000313,7]
[422249524,1778764251000,-604.0,0.00031137,9]
[422249490,1778764251000,-892.364592,0.00031,7]
[422249513,1778764251000,-261.716233,0.00031,7]
[422249547,1778764251000,-169.0,0.00031559,30]
[422249491,1778764251000,-892.364592,0.00031,7]
[422249492,1778764251000,-892.364593,0.00031,7]
[422249494,1778764251000,-803.606374,0.00031,7]
[422249495,1778764251000,-803.606374,0.00031,7]
[422249497,1778764251000,-155.677675,0.00031,7]
[422249493,1778764251000,-803.606374,0.00031,7]
[422249496,1778764251000,-803.606364,0.00031,7]
[422249503,1778764251000,-435.84892,0.00031,7]
[422249504,1778764251000,-435.84892,0.00031,7]
[422249501,1778764251000,-435.84892,0.00031,7]
[422249500,1778764251000,-155.677671,0.00031,7]
[422249499,1778764251000,-155.677675,0.00031,7]
[422249498,1778764251000,-155.677675,0.00031,7]
[422249502,1778764251000,-435.84892,0.00031,7]
[422249506,1778764251000,-787.643953,0.00031,7]
[422249514,1778764251000,-200.0,0.00031043,2]
[422249505,1778764251000,-1258.844168,0.00031,7]
[422249508,1778764251000,-787.643953,0.00031,7]
[422249509,1778764251000,-1258.844168,0.00031,7]
[422249512,1778764251000,-787.643945,0.00031,7]
[422249517,1778764251000,-200.0,0.00031043,2]
[422249515,1778764251000,-200.0,0.00031043,2]
[422249507,1778764251000,-1258.844168,0.00031,7]
[422249510,1778764251000,-787.643953,0.00031,7]
[422249516,1778764251000,-200.0,0.00031043,2]
[422249511,1778764251000,-1258.844167,0.00031,7]
[422249518,1778764251000,-7478.33999999,0.0003105,30]
[422249545,1778764251000,-18047.92,0.00031548,7]
[422249572,1778764251000,-3557.20329659,0.00032,120]
[422249548,1778764251000,-160.0,0.00031559,30]
[422249589,1778764251000,-523.0,0.00032559,30]
[422249584,1778764251000,-908.14805881,0.000323,2]
[422249579,1778764251000,-200.0,0.00032055,2]
[422249583,1778764251000,-604.0,0.0003226,10]
[422249590,1778764251000,-169.0,0.00032559,30]
[422249587,1778764251000,-157.0,0.0003249,3]
[422249586,1778764251000,-926.0,0.00032462,2]
[422249588,1778764251000,-1000.0,0.000325,2]
[422249585,1778764251000,-824.67122955,0.0003239,2]
[422249592,1778764251000,-451.0,0.00032559,30]
[422249591,1778764251000,-162.54203541,0.00032559,30]
[422249593,1778764251000,-2367.0,0.00032559,30]
[422249594,1778764251000,-2998.49,0.000326,7]
[422249596,1778764251000,-2273.0,0.00032618,30]
[422249597,1778764251000,-3851.0,0.00032618,30]
[422249595,1778764251000,-152.0,0.00032617,13]
[422249599,1778764251000,-153.0,0.00032618,30]
[422249600,1778764251000,-260.0,0.00032618,30]
[422249601,1778764251000,-155.0,0.00032618,30]
[422249598,1778764251000,-202.0,0.00032618,30]
[422249603,1778764251000,-5000.0,0.00032635,10]
[422249604,1778764251000,-150.0,0.00032636,2]
[422249602,1778764251000,-156.0,0.00032618,30]
[422249605,1778764251000,-3000.0,0.00032654,15]
[422249607,1778764251000,-4907.61787217,0.000328,2]
[422249608,1778764251000,-604.0,0.00032822,10]
[422249553,1778764251000,-2273.0,0.00031618,30]
[422249582,1778764251000,-11000.0,0.0003222,120]
[422249580,1778764251000,-500.0,0.00032074,2]
[422249606,1778764251000,-152.0,0.00032767,18]
[422249581,1778764251000,-2572.9,0.0003221,5]
[422249578,1778764251000,-152.0,0.00032037,17]
[422249550,1778764251000,-2367.0,0.00031559,30]
[422249549,1778764251000,-451.0,0.00031559,30]
[422249552,1778764251000,-2998.49,0.000316,7]
[422249556,1778764251000,-153.0,0.00031618,30]
[422249555,1778764251000,-202.0,0.00031618,30]
[422249558,1778764251000,-155.0,0.00031618,30]
[422249557,1778764251000,-260.0,0.00031618,30]
[422249560,1778764251000,-157.0,0.0003164,3]
[422249562,1778764251000,-229.3,0.00031796,120]
[422249559,1778764251000,-156.0,0.00031618,30]
[422249564,1778764251000,-8494.53999999,0.00031963,30]
[422249561,1778764251000,-604.0,0.00031699,9]
[422249551,1778764251000,-152.0,0.00031573,12]
[422249565,1778764251000,-162.08,0.00032,120]
[422249563,1778764251000,-150.0,0.00031834,2]
[422249575,1778764251000,-214.95940296,0.00032,30]
[422249573,1778764251000,-1432.29,0.00032,7]
[422249576,1778764251000,-208.3309892,0.00032,30]
[422249571,1778764251000,-1759.68430131,0.00032,2]
[422249609,1778764251000,-2187.0,0.00032834,2]
[422249574,1778764251000,-4042.1,0.00032,14]
[422249568,1778764251000,-300.0,0.00032,120]
[422249567,1778764251000,-14279.3709408,0.00032,5]
[422249577,1778764251000,-700.0,0.00032,2]
[422249569,1778764251000,-498.03246933,0.00032,120]
[422249566,1778764251000,-355.0,0.00032,120]
[422249570,1778764251000,-250.0,0.00032,30]
[422249648,1778764252000,-500.96011982,0.00032877,2]
[422249645,1778764252000,-500.0,0.00032877,2]
[422249647,1778764252000,-500.0,0.00032877,2]
[422249643,1778764252000,-500.0,0.00032877,2]
[422249642,1778764252000,-271.0,0.00032877,120]
[422249651,1778764252000,-9510.71386298,0.00032877,30]
[422249640,1778764252000,-254.173722,0.00032877,7]
[422249646,1778764252000,-500.0,0.00032877,2]
[422249636,1778764252000,-254.173726,0.00032877,7]
[422249644,1778764252000,-500.0,0.00032877,2]
[422249641,1778764252000,-1042.56,0.00032877,2]
[422249663,1778764252000,-500.0,0.00032877,2]
[422249650,1778764252000,-1598.28,0.00032877,60]
[422249653,1778764252000,-1145.82838,0.00032877,7]
[422249661,1778764252000,-750.661069,0.00032877,7]
[422249662,1778764252000,-161.502865,0.00032877,7]
[422249655,1778764252000,-1145.82838586,0.00032877,7]
[422249654,1778764252000,-1145.82838,0.00032877,7]
[422249659,1778764252000,-750.661077,0.00032877,7]
[422249656,1778764252000,-151.0,0.00032877,7]
[422249652,1778764252000,-1145.82838,0.00032877,7]
[422249657,1778764252000,-151.0,0.00032877,7]
[422249632,1778764252000,-254.173726,0.00032877,7]
[422249658,1778764252000,-750.661077,0.00032877,7]
[422249649,1778764252000,-413.05779737,0.00032877,2]
[422249633,1778764252000,-254.173726,0.00032877,7]
[422249623,1778764252000,-254.173726,0.00032877,7]
[422249635,1778764252000,-254.173726,0.00032877,7]
[422249660,1778764252000,-750.661077,0.00032877,7]
[422249613,1778764252000,-151.0,0.00032877,7]
[422249610,1778764252000,-506.65,0.00032877,7]
[422249612,1778764252000,-151.0,0.00032877,7]
[422249617,1778764252000,-151.0,0.00032877,7]
[422249614,1778764252000,-151.0,0.00032877,7]
[422249616,1778764252000,-151.0,0.00032877,7]
[422249621,1778764252000,-254.173726,0.00032877,7]
[422249625,1778764252000,-254.173726,0.00032877,7]
[422249619,1778764252000,-151.0,0.00032877,7]
[422249615,1778764252000,-151.0,0.00032877,7]
[422249637,1778764252000,-254.173726,0.00032877,7]
[422249618,1778764252000,-151.0,0.00032877,7]
[422249624,1778764252000,-254.173726,0.00032877,7]
[422249620,1778764252000,-195.010599,0.00032877,7]
[422249622,1778764252000,-254.173726,0.00032877,7]
[422249627,1778764252000,-254.173726,0.00032877,7]
[422249638,1778764252000,-254.173726,0.00032877,7]
[422249629,1778764252000,-254.173726,0.00032877,7]
[422249630,1778764252000,-254.173726,0.00032877,7]
[422249628,1778764252000,-254.173726,0.00032877,7]
[422249639,1778764252000,-254.173726,0.00032877,7]
[422249631,1778764252000,-254.173726,0.00032877,7]
[422249634,1778764252000,-254.173726,0.00032877,7]
[422249626,1778764252000,-254.173726,0.00032877,7]
[422249664,1778764252000,-152.48870379,0.000329,2]
[422249611,1778764252000,-349.85,0.00032877,2]
[422249666,1778764252000,-1432.29,0.000329,30]
[422249696,1778764252000,-169.0,0.00033559,30]
[422249698,1778764252000,-2367.0,0.00033559,30]
[422249700,1778764252000,-1432.29,0.000336,30]
[422249699,1778764252000,-155.37808319,0.000336,120]
[422249701,1778764252000,-4042.1,0.000336,14]
[422249707,1778764252000,-155.0,0.00033618,30]
[422249703,1778764252000,-3851.0,0.00033618,30]
[422249708,1778764252000,-156.0,0.00033618,30]
[422249697,1778764252000,-451.0,0.00033559,30]
[422249702,1778764252000,-2273.0,0.00033618,30]
[422249706,1778764252000,-260.0,0.00033618,30]
[422249693,1778764252000,-40166.0,0.00033511,30]
[422249704,1778764252000,-202.0,0.00033618,30]
[422249711,1778764252000,-152.0,0.00033662,5]
[422249714,1778764252000,-150.0,0.00033834,2]
[422249713,1778764252000,-5000.0,0.0003377,10]
[422249718,1778764252000,-300.0,0.00034,120]
[422249712,1778764252000,-40166.0,0.00033767,30]
[422249717,1778764252000,-350.0,0.00033973,5]
[422249710,1778764252000,-152.0,0.00033662,14]
[422249719,1778764252000,-2626663.72812303,0.00034,120]
[422249716,1778764252000,-604.0,0.00033945,11]
[422249715,1778764252000,-40166.0,0.00033895,30]
[422249665,1778764252000,-12938.53442052,0.000329,120]
[422249705,1778764252000,-153.0,0.00033618,30]
[422249692,1778764252000,-1231.23940797,0.000335,2]
[422249709,1778764252000,-40166.0,0.00033639,30]
[422249687,1778764252000,-2998.49,0.000334,30]
[422249690,1778764252000,-152.0,0.00033497,19]
[422249668,1778764252000,-250.0,0.00032935,7]
[422249670,1778764252000,-2686.98398688,0.00032984,7]
[422249669,1778764252000,-250.0,0.00032935,7]
[422249671,1778764252000,-211.40802048,0.00032999,30]
[422249682,1778764252000,-655.11,0.00033183,2]
[422249673,1778764252000,-37966.89914672,0.00033,3]
[422249681,1778764252000,-40166.0,0.00033128,30]
[422249677,1778764252000,-8710.21141011,0.00033,2]
[422249679,1778764252000,-571.343059,0.00033,14]
[422249680,1778764252000,-350.0,0.00033014,5]
[422249672,1778764252000,-44733.1519058,0.00033,2]
[422249675,1778764252000,-151.38282021,0.00033,7]
[422249667,1778764252000,-4042.1,0.000329,14]
[422249695,1778764252000,-523.0,0.00033559,30]
[422249676,1778764252000,-46619.90589568,0.00033,10]
[422249674,1778764252000,-52136.3221614,0.00033,2]
[422249683,1778764252000,-40166.0,0.00033256,30]
[422249685,1778764252000,-604.0,0.00033384,11]
[422249686,1778764252000,-40166.0,0.00033384,30]
[422249689,1778764252000,-18047.92,0.00033472,14]
[422249688,1778764252000,-160.0,0.00033452,30]
[422249684,1778764252000,-157.0,0.0003334,3]
[422249694,1778764252000,-234.42403398,0.00033526,2]
[422249691,1778764252000,-180.07876554,0.00033497,5]
[422249678,1778764252000,-6639.48784187,0.00033,30]
[422249744,1778764253000,-151.0,0.00024658,2]
[422249734,1778764253000,-930.0,0.00016933,2]
[422249736,1778764253000,-150.0,0.0002,2]
[422249735,1778764253000,-930.0,0.00019933,2]
[422249742,1778764253000,-261.716233,0.00024658,2]
[422249741,1778764253000,-261.716233,0.00024658,2]
[422249737,1778764253000,-293.593496,0.00020002,2]
[422249738,1778764253000,-5636.30005456,0.00020448,2]
[422249739,1778764253000,-3180.0,0.00021918,7]
[422249733,1778764253000,-930.0,0.00013933,2]
[422249740,1778764253000,-930.0,0.00022933,2]
[422249732,1778764253000,-542.29642793,0.00013698,2]
[422249726,1778764253000,10500.0,0.0001,3]
[422249729,1778764253000,-500.0,0.00013698,2]
[422249730,1778764253000,-500.0,0.00013698,2]